bitfinex/quotes_BTCUSD_20220109
["timestamp","ask_amount","ask_price","bid_price","bid_amount"]
[1641717132158,0.07164981,41690.0,41689.0,0.0001]
[1641717132559,0.35538396,41690.0,41689.0,0.0001]
[1641717132958,0.07164981,41690.0,41689.0,0.0001]
[1641717133159,0.35468805,41690.0,41689.0,0.0001]
[1641717133418,0.07164981,41690.0,41689.0,0.0001]
[1641717133622,0.36624242,41690.0,41689.0,0.0001]
[1641717134022,0.35650531,41690.0,41689.0,0.0002]
[1641717134321,0.35650531,41690.0,41671.0,1.2035]
[1641717134322,0.060012,41682.0,41672.0,0.3]
[1641717134521,0.3562736,41681.0,41672.0,0.3]
[1641717134721,0.08471,41681.0,41672.0,0.3]
[1641717134920,0.27320293,41677.0,41671.0,0.31313996]
[1641717135122,0.27320293,41677.0,41673.0,0.06002]
[1641717135321,0.36131768,41674.0,41673.0,0.06001816]
[1641717135721,0.36131768,41674.0,41673.0,0.0604104]
[1641717136323,0.36131768,41674.0,41673.0,0.1064104]
[1641717137455,0.36131768,41674.0,41673.0,0.0604104]
[1641717138259,0.36931768,41674.0,41673.0,0.0994104]
[1641717138862,0.36921768,41674.0,41673.0,0.0994104]
[1641717139062,0.36921768,41674.0,41673.0,0.09936451]
[1641717139463,0.36121768,41674.0,41673.0,0.06036451]
[1641717139963,0.36121768,41674.0,41673.0,0.44528251]
[1641717140163,0.36121768,41674.0,41673.0,0.49428251]
[1641717140365,0.36121768,41674.0,41673.0,0.10936451]
[1641717140763,0.36121768,41674.0,41673.0,0.49428251]
[1641717141209,0.00070259,41675.0,41673.0,1.47558277]
[1641717141407,0.00070259,41675.0,41674.0,0.384918]
[1641717142207,0.00070259,41675.0,41674.0,0.449918]
[1641717142610,0.00567496,41680.0,41676.0,0.05999743]
[1641717142808,0.00567496,41680.0,41678.0,0.059997]
[1641717143011,0.00567496,41680.0,41679.0,0.384918]
[1641717143609,0.00567496,41680.0,41678.0,0.059997]
[1641717144011,0.00567496,41680.0,41679.0,0.0599976]
[1641717144213,0.060001,41685.0,41679.0,0.0599976]
[1641717144411,0.37828068,41682.0,41681.0,0.30197202]
[1641717146258,0.37928068,41682.0,41681.0,0.36497202]
[1641717146659,0.37928068,41682.0,41681.0,0.063]
[1641717147460,0.37828068,41682.0,41680.0,0.18]
[1641717147660,0.43886042,41682.0,41680.0,0.18]
[1641717148261,0.44186042,41682.0,41680.0,0.228]
[1641717149310,0.28524819,41681.0,41680.0,0.228]
[1641717149507,0.28524819,41681.0,41680.0,0.06]
[1641717150307,0.29424819,41681.0,41680.0,0.06]
[1641717151314,0.009,41681.0,41680.0,0.06]
[1641717151610,0.28717281,41681.0,41680.0,0.06]
[1641717152259,0.29517281,41681.0,41680.0,0.06]
[1641717153559,0.06002,41680.0,41678.0,0.00035592]
[1641717153761,0.29446419,41679.0,41678.0,0.00035592]
[1641717154359,0.30146419,41679.0,41678.0,0.00035592]
[1641717154562,0.30146419,41679.0,41678.0,0.00071186]
[1641717154761,0.30146419,41679.0,41678.0,0.00035594]
[1641717155162,1.72234761,41679.0,41678.0,0.00035594]
[1641717155565,1.71534761,41679.0,41678.0,0.00035594]
[1641717155761,1.71534761,41679.0,41678.0,0.00071187]
[1641717156006,1.71534761,41679.0,41678.0,0.00035593]
[1641717156407,1.96848506,41679.0,41678.0,0.00035593]
[1641717156606,0.6,41678.0,41667.0,0.000696]
[1641717156807,0.00128749,41673.0,41667.0,0.000696]
[1641717157005,0.060032,41670.0,41667.0,0.000696]
[1641717157207,0.71959,41669.0,41667.0,0.000696]
[1641717157408,0.00124091,41667.0,41665.0,0.00043]
[1641717157606,0.00124091,41667.0,41662.0,0.00043]
[1641717157607,0.119746,41663.0,41662.0,0.00043]
[1641717157807,0.119746,41663.0,41654.0,0.304991]
[1641717157808,0.75,41662.0,41654.0,0.00043]
[1641717158010,0.304561,41661.0,41654.0,0.00011]
[1641717158212,0.37880784,41654.0,41653.0,0.50019552]
[1641717158410,1.09839784,41654.0,41652.0,0.00032]
[1641717158807,1.41556096,41654.0,41652.0,0.00032]
[1641717159107,1.47561196,41654.0,41652.0,0.00032]
[1641717160163,0.29180182,41653.0,41652.0,0.00068036]
[1641717160374,0.29180182,41653.0,41650.0,0.00143]
[1641717160375,1.0,41651.0,41650.0,0.00143]
[1641717160564,0.45,41649.0,41645.0,0.00032]
[1641717160765,0.55,41647.0,41643.0,0.00032]
[1641717160965,0.8274664,41646.0,41641.0,0.00443]
[1641717161165,0.20478288,41645.0,41641.0,0.00443]
[1641717161365,0.71959,41644.0,41640.0,0.00043]
[1641717161565,0.38299294,41638.0,41632.0,0.11716077]
[1641717161765,0.44306694,41638.0,41636.0,0.060073]
[1641717162265,0.44306694,41638.0,41632.0,0.01021]
[1641717162266,0.30817528,41637.0,41632.0,0.01021]
[1641717162465,0.39299294,41638.0,41632.0,0.00521]
[1641717162865,0.39299294,41638.0,41633.0,0.060073]
[1641717163264,0.39299294,41638.0,41635.0,0.06006573]
[1641717163518,0.39299294,41638.0,41635.0,0.12013073]
[1641717163717,0.39299294,41638.0,41635.0,0.11513073]
[1641717163917,0.38299294,41638.0,41635.0,0.11513073]
[1641717164317,0.38299294,41638.0,41636.0,0.060065]
[1641717164520,0.38299294,41638.0,41636.0,0.00035826]
[1641717165317,0.62299294,41638.0,41636.0,0.00035826]
[1641717165718,0.62299294,41638.0,41636.0,0.00035825]
[1641717166018,0.62289294,41638.0,41636.0,0.00035825]
[1641717166219,0.060071,41637.0,41636.0,0.00035825]
[1641717166820,0.62589294,41638.0,41636.0,0.00035825]
[1641717167023,0.243,41638.0,41636.0,0.00035825]
[1641717167469,0.00057074,41637.0,41636.0,0.00035825]
[1641717167867,0.00057074,41637.0,41636.0,0.3856345]
[1641717168068,0.00057074,41637.0,41636.0,0.38027625]
[1641717168368,0.00057074,41637.0,41636.0,0.37027625]
[1641717169069,0.24,41638.0,41636.0,0.47027002]
[1641717169269,0.24,41638.0,41637.0,0.34751188]
[1641717169469,0.24,41638.0,41637.0,0.482718]
[1641717169671,0.24,41638.0,41637.0,0.432718]
[1641717169869,0.24,41638.0,41637.0,0.482718]
[1641717170068,0.24,41638.0,41637.0,0.63307]
[1641717170271,0.24,41638.0,41637.0,0.543119]
[1641717170568,0.2399,41638.0,41637.0,0.43527]
[1641717170769,0.2399,41638.0,41637.0,0.000352]
[1641717171409,0.2398,41638.0,41637.0,0.000352]
[1641717172413,0.2398,41638.0,41637.0,0.386274]
[1641717172611,0.2398,41638.0,41637.0,0.486274]
[1641717172811,0.2398,41638.0,41637.0,0.386274]
[1641717173413,0.2398,41638.0,41637.0,0.38627407]
[1641717173612,0.2398,41638.0,41637.0,0.00035207]
[1641717174413,0.22783221,41638.0,41637.0,0.00035207]
[1641717174667,0.22731774,41638.0,41637.0,0.00035207]
[1641717175061,0.22731774,41638.0,41637.0,0.05035207]
[1641717175264,0.22731774,41638.0,41637.0,0.43627407]
[1641717175463,0.22731774,41638.0,41637.0,0.43662614]
[1641717175662,0.22721774,41638.0,41637.0,0.53627407]
[1641717176264,0.22721774,41638.0,41637.0,0.38627407]
[1641717176464,0.22721774,41638.0,41637.0,0.53627407]
[1641717176663,0.22721774,41638.0,41637.0,0.58627407]
[1641717177062,0.22711774,41638.0,41637.0,0.58627407]
[1641717177467,0.22768815,41638.0,41637.0,0.58627407]
[1641717177665,0.22768815,41638.0,41637.0,0.38662614]
[1641717177866,0.22758815,41638.0,41637.0,0.58627407]
[1641717178716,0.22748815,41638.0,41637.0,0.58627407]
[1641717179518,0.22738815,41638.0,41637.0,0.58627407]
[1641717180227,0.22738815,41638.0,41637.0,0.38627407]
[1641717180420,0.22738815,41638.0,41637.0,0.37927407]
[1641717181021,0.67683944,41638.0,41637.0,0.37427407]
[1641717181521,0.22738815,41638.0,41637.0,0.37427407]
[1641717181825,0.22728815,41638.0,41637.0,0.37427407]
[1641717182020,0.22711815,41638.0,41637.0,0.57427407]
[1641717182262,0.22711774,41638.0,41637.0,0.47427407]
[1641717182461,0.22711774,41638.0,41637.0,0.57427407]
[1641717182662,0.22756672,41638.0,41637.0,0.57427407]
[1641717183063,0.22756672,41638.0,41637.0,0.37427407]
[1641717183264,0.22746672,41638.0,41637.0,0.37427407]
[1641717183665,0.22746672,41638.0,41637.0,0.47427407]
[1641717183866,0.22746672,41638.0,41637.0,0.57427407]
[1641717184265,0.22746672,41638.0,41637.0,0.37427407]
[1641717184466,0.22736672,41638.0,41637.0,0.47427407]
[1641717184667,0.22701774,41638.0,41637.0,0.57427407]
[1641717185368,0.22691774,41638.0,41637.0,0.57427407]
[1641717186618,0.22691774,41638.0,41637.0,0.37427407]
[1641717187519,0.719874,41644.0,41637.0,0.37427407]
[1641717187520,0.719874,41644.0,41640.0,0.18013715]
[1641717187722,0.719874,41644.0,41641.0,0.50601]
[1641717187923,0.719874,41644.0,41642.0,0.0478]
[1641717188123,0.239557,41644.0,41643.0,0.385882]
[1641717188420,0.239557,41644.0,41643.0,1.07794258]
[1641717188620,0.31212191,41654.0,41644.0,0.05]
[1641717188621,0.00124112,41654.0,41644.0,0.05]
[1641717188822,0.45940198,41655.0,41646.0,0.060039]
[1641717189020,0.45940198,41655.0,41647.0,0.445922]
[1641717189221,0.45940198,41655.0,41647.0,0.06004]
[1641717190266,0.30113443,41652.0,41648.0,0.060042]
[1641717190469,0.45940198,41655.0,41648.0,0.060042]
[1641717191467,0.35918445,41653.0,41648.0,0.060042]
[1641717192370,0.121291,41650.0,41648.0,0.074042]
[1641717192569,0.00050908,41649.0,41648.0,0.014]
[1641717193615,0.06056108,41649.0,41647.0,0.24052827]
[1641717194214,0.00050908,41649.0,41647.0,0.24052827]
[1641717194413,0.00050908,41649.0,41647.0,0.26152827]
[1641717194615,0.00050908,41649.0,41647.0,0.26188016]
[1641717194813,0.00050908,41649.0,41647.0,0.26152827]
[1641717195519,0.24050908,41649.0,41647.0,0.26152827]
[1641717195716,0.24050908,41649.0,41647.0,0.24052827]
[1641717195918,0.30056108,41649.0,41647.0,0.24052827]
[1641717196319,0.30056108,41649.0,41647.0,0.25752827]
[1641717196518,0.57417209,41649.0,41647.0,0.25752827]
[1641717196721,0.57417209,41649.0,41647.0,0.13744889]
[1641717196722,0.68505581,41648.0,41647.0,0.13744889]
[1641717196920,0.43873949,41648.0,41647.0,0.13744889]
[1641717197562,0.43873949,41648.0,41647.0,0.12044889]
[1641717197764,0.43873949,41648.0,41647.0,0.00035189]
[1641717197962,0.43873949,41648.0,41647.0,0.0003519]
[1641717198463,0.48273949,41648.0,41647.0,0.0003519]
[1641717199362,0.75757941,41648.0,41647.0,0.0003519]
[1641717199563,0.43873949,41648.0,41647.0,0.0003519]
[1641717199764,0.02687,41648.0,41647.0,0.0003519]
[1641717199963,0.24050908,41649.0,41647.0,0.06040227]
[1641717200162,0.24050908,41649.0,41647.0,0.06075417]
[1641717200464,0.01,41648.0,41647.0,0.06840227]
[1641717201610,0.30056308,41649.0,41647.0,0.06040227]
[1641717202011,0.42093896,41648.0,41647.0,0.0003519]
[1641717202414,0.42093896,41648.0,41647.0,0.00070379]
[1641717202612,0.42153386,41648.0,41647.0,0.00035189]
[1641717203215,0.0005949,41648.0,41647.0,0.00035189]
[1641717203418,0.0005949,41648.0,41647.0,0.00070379]
[1641717203614,0.0005949,41648.0,41647.0,0.0003519]
[1641717204315,0.0005949,41648.0,41647.0,0.3982339]
[1641717204516,0.0005949,41648.0,41647.0,0.3985858]
[1641717204792,0.0005949,41648.0,41647.0,0.3982339]
[1641717205693,0.0005949,41648.0,41647.0,0.3862339]
[1641717205893,0.0005949,41648.0,41647.0,0.3865858]
[1641717206494,0.0005949,41648.0,41647.0,0.4062339]
[1641717206694,0.0005949,41648.0,41647.0,0.68354761]
[1641717206994,0.0005949,41648.0,41647.0,1.95554761]
[1641717207197,0.0005949,41648.0,41647.0,0.68354761]
[1641717207794,0.0005949,41648.0,41647.0,0.66354761]
[1641717207993,0.0005949,41648.0,41647.0,0.66389951]
[1641717208194,0.0005949,41648.0,41647.0,0.66354761]
[1641717208427,0.0005949,41648.0,41647.0,0.69954761]
[1641717209021,0.0005949,41648.0,41647.0,0.74954761]
[1641717209220,0.0005949,41648.0,41647.0,0.84954761]
[1641717209621,0.0005949,41648.0,41647.0,0.81354761]
[1641717210022,0.0005949,41648.0,41647.0,2.08554761]
[1641717210322,0.0005949,41648.0,41647.0,0.84454761]
[1641717211721,0.0005949,41648.0,41647.0,0.5362339]
[1641717212363,0.0005949,41648.0,41647.0,0.5602339]
[1641717212564,0.0005949,41648.0,41647.0,0.4102339]
[1641717212763,0.0005949,41648.0,41647.0,0.4602339]
[1641717212964,0.0005949,41648.0,41647.0,0.83821476]
[1641717213164,0.24,41649.0,41647.0,0.83821476]
[1641717213365,0.24,41649.0,41648.0,0.53746193]
[1641717213565,0.24,41649.0,41648.0,1.12334393]
[1641717213967,0.24,41649.0,41648.0,2.39534393]
[1641717214166,0.24,41649.0,41648.0,2.50440874]
[1641717214365,0.24,41649.0,41648.0,2.52340874]
[1641717214966,0.24,41649.0,41648.0,1.25140874]
[1641717215566,0.24,41649.0,41648.0,1.23240874]
[1641717216122,0.00126032,41663.0,41650.0,0.113291]
[1641717216325,2.4371,41664.0,41655.0,0.06002444]
[1641717216326,0.72018,41662.0,41655.0,0.06002444]
[1641717216521,0.72018,41662.0,41658.0,0.060023]
[1641717216722,0.72018,41662.0,41659.0,0.0478]
[1641717216920,0.72018,41662.0,41661.0,0.32742622]
[1641717217121,0.72018,41662.0,41661.0,0.37522622]
[1641717218321,0.72018,41662.0,41661.0,0.67860653]
[1641717218523,0.72218,41662.0,41661.0,1.07348853]
[1641717219523,0.72218,41662.0,41661.0,1.27348853]
[1641717219766,0.72218,41662.0,41661.0,1.26448853]
[1641717219767,0.72018,41662.0,41661.0,1.26448853]
[1641717219967,0.72018,41662.0,41661.0,1.28384853]
[1641717220168,0.000696,41665.0,41661.0,1.28384853]
[1641717220370,0.000696,41665.0,41664.0,0.33815576]
[1641717220567,0.000696,41665.0,41664.0,0.92403776]
[1641717221768,0.000696,41665.0,41664.0,0.97312373]
[1641717222368,0.000696,41665.0,41664.0,0.80112373]
[1641717222569,0.000696,41665.0,41664.0,0.80312027]
[1641717223527,0.00044653,41669.0,41665.0,0.5]
[1641717223724,0.00044653,41669.0,41667.0,0.060005]
[1641717223924,0.00044653,41669.0,41668.0,1.06382558]
[1641717224127,0.00567496,41671.0,41669.0,0.05]
[1641717224327,0.55745994,41683.0,41670.0,2.01606029]
[1641717224525,0.92136351,41683.0,41670.0,0.8631952]
[1641717224727,0.98136751,41683.0,41670.0,0.8581952]
[1641717224924,0.98136751,41683.0,41678.0,0.12000453]
[1641717225224,0.71976,41682.0,41680.0,0.120008]
[1641717226025,0.71976,41682.0,41680.0,0.24000459]
[1641717226525,0.93976,41682.0,41680.0,0.24200459]
[1641717226729,0.02687,41681.0,41680.0,0.122008]
[1641717226925,0.71976,41681.0,41680.0,0.122008]
[1641717227567,0.71976,41681.0,41680.0,0.120008]
[1641717228370,0.71976,41681.0,41680.0,0.42915982]
[1641717228569,0.71976,41681.0,41680.0,0.126008]
[1641717228969,0.72021538,41681.0,41680.0,0.126008]
[1641717229669,0.72021538,41681.0,41680.0,0.120008]
[1641717230571,0.72021538,41681.0,41680.0,0.124008]
[1641717231218,0.72021538,41681.0,41680.0,0.064004]
[1641717231420,0.74708538,41681.0,41680.0,0.064004]
[1641717231617,0.74708538,41681.0,41680.0,0.060004]
[1641717231917,0.74708538,41681.0,41679.0,0.0478]
[1641717232121,0.02687,41680.0,41679.0,0.107802]
[1641717232317,1.08262842,41681.0,41679.0,0.107802]
[1641717232519,1.08262842,41681.0,41680.0,0.00569952]
[1641717233319,1.10994367,41681.0,41680.0,0.00569952]
[1641717233520,0.72020525,41681.0,41680.0,0.00569952]
[1641717234420,0.72020525,41681.0,41680.0,1.05476531]
[1641717234678,0.72020525,41681.0,41680.0,1.63447384]
[1641717234875,0.72020525,41681.0,41680.0,1.23447384]
[1641717235074,0.72020525,41681.0,41680.0,1.38447384]
[1641717235674,0.72020525,41681.0,41680.0,1.37947384]
[1641717236575,0.72020525,41681.0,41680.0,1.40347384]
[1641717237676,0.72020525,41681.0,41680.0,1.36090384]
[1641717237880,0.72020548,41681.0,41680.0,2.75287284]
[1641717238523,0.24034548,41681.0,41680.0,2.77887284]
[1641717238920,0.22,41682.0,41681.0,0.31442553]
[1641717239120,0.22,41682.0,41681.0,0.87793333]
[1641717239522,0.22,41682.0,41681.0,1.26381533]
[1641717239925,0.004,41689.0,41681.0,1.26381533]
[1641717240124,0.004,41689.0,41688.0,0.28832486]
[1641717240525,0.004,41689.0,41688.0,0.67420686]
[1641717240924,0.004,41689.0,41688.0,0.82420686]
[1641717242376,0.00445426,41689.0,41688.0,0.84020686]
[1641717242579,0.00445426,41689.0,41688.0,0.84590588]
[1641717243177,0.00445426,41689.0,41688.0,1.13532922]
[1641717243475,0.00445426,41689.0,41688.0,0.40758102]
[1641717243676,0.00445426,41689.0,41688.0,0.02169902]
[1641717244275,0.00445426,41689.0,41688.0,0.00569902]
[1641717244478,0.00445426,41689.0,41688.0,0.01969902]
[1641717245778,0.00445426,41689.0,41688.0,0.45558102]
[1641717246038,0.00445426,41689.0,41688.0,0.55558102]
[1641717246234,0.00445426,41689.0,41688.0,0.54158102]
[1641717246435,0.00445426,41689.0,41688.0,0.56058102]
[1641717246634,0.22445426,41689.0,41688.0,0.56058102]
[1641717247437,0.22444416,41689.0,41688.0,0.56058102]
[1641717247738,0.00444416,41689.0,41688.0,0.54158102]
[1641717248538,0.00444416,41689.0,41688.0,0.56558102]
[1641717248939,0.00444416,41689.0,41688.0,0.41558102]
[1641717249439,0.29198098,41694.0,41688.0,0.41558102]
[1641717249671,0.34328746,41695.0,41690.0,0.119979]
[1641717249870,0.34328746,41695.0,41688.0,0.00569902]
[1641717249871,0.059988,41693.0,41688.0,0.00569902]
[1641717250274,0.02687,41692.0,41688.0,0.00569902]
[1641717250471,0.02687,41692.0,41688.0,0.01969902]
[1641717251073,0.28674274,41694.0,41688.0,0.01969902]
[1641717251473,0.059997,41691.0,41688.0,0.01969902]
[1641717251673,0.059997,41691.0,41688.0,0.00569902]
[1641717252575,0.34328746,41695.0,41690.0,0.00370068]
[1641717253515,0.059986,41694.0,41690.0,0.00370068]
[1641717254118,0.34628291,41694.0,41690.0,0.00370068]
[1641717254520,0.34628291,41694.0,41690.0,0.00670068]
[1641717254719,0.054986,41694.0,41690.0,0.00670068]
[1641717254919,0.33816801,41694.0,41690.0,0.00670068]
[1641717255519,0.054986,41694.0,41690.0,0.00670068]
[1641717255721,0.3618287,41694.0,41690.0,0.00370068]
[1641717255921,0.054986,41694.0,41690.0,0.00370068]
[1641717256320,0.054986,41694.0,41692.0,0.059989]
[1641717256921,0.3376125,41695.0,41692.0,0.11997445]
[1641717257171,0.3376125,41695.0,41692.0,0.059989]
[1641717257569,0.3376125,41695.0,41693.0,0.00370136]
[1641717258174,0.3668247,41697.0,41693.0,0.00370136]
[1641717258373,0.059982,41697.0,41695.0,0.059983]
[1641717258774,0.059982,41697.0,41693.0,0.00370136]
[1641717258974,0.29307411,41696.0,41693.0,0.00370136]
[1641717259174,0.49811346,41699.0,41693.0,0.00370136]
[1641717259376,0.05999,41697.0,41693.0,0.00370136]
[1641717259574,0.49810341,41699.0,41693.0,0.00370136]
[1641717259774,0.43297318,41695.0,41693.0,0.00370136]
[1641717259973,0.49810341,41699.0,41693.0,0.00370136]
[1641717260175,0.20632757,41699.0,41693.0,0.00370136]
[1641717260776,0.20632758,41699.0,41695.0,0.059982]
[1641717261021,0.059982,41697.0,41693.0,0.00370136]
[1641717261621,0.059982,41697.0,41694.0,0.059982]
[1641717261822,0.059982,41697.0,41695.0,0.059982]
[1641717262622,0.059982,41697.0,41695.0,0.00199447]
[1641717263723,0.27948959,41696.0,41695.0,0.00199447]
[1641717264125,0.059982,41697.0,41695.0,0.00199447]
[1641717264322,0.059982,41697.0,41695.0,0.06197444]
[1641717264323,0.3426693,41697.0,41695.0,0.06197444]
[1641717264523,0.3426693,41697.0,41695.0,0.00199447]
[1641717264524,0.2802753,41696.0,41695.0,0.00199447]
[1641717264773,0.059982,41697.0,41695.0,0.00199447]
[1641717264971,0.71948,41696.0,41695.0,0.00199447]
[1641717266671,1.00747048,41696.0,41695.0,0.00199447]
[1641717273268,0.71948,41696.0,41695.0,0.00199447]
[1641717273872,0.71948,41696.0,41694.0,0.00069545]
[1641717274071,0.99942906,41696.0,41694.0,0.00069545]
[1641717274371,0.71948,41696.0,41694.0,0.00069545]
[1641717277023,0.71948,41696.0,41694.0,0.06067862]
[1641717277623,0.71948,41696.0,41694.0,0.11997017]
[1641717277824,0.779465,41696.0,41694.0,0.11997017]
[1641717278225,0.779465,41696.0,41694.0,0.059987]
[1641717280371,0.764465,41696.0,41694.0,0.059987]
[1641717280770,0.764465,41696.0,41693.0,0.059987]
[1641717280970,0.764465,41696.0,41692.0,0.119978]
[1641717281177,0.764465,41696.0,41689.0,0.24030854]
[1641717281971,0.764465,41696.0,41689.0,0.24030856]
[1641717282171,0.764465,41696.0,41692.0,0.059987]
[1641717282372,0.764465,41696.0,41690.0,0.059991]
[1641717282572,0.00073684,41695.0,41690.0,0.059991]
[1641717282774,0.059989,41693.0,41690.0,0.059991]
[1641717282975,0.405913,41692.0,41690.0,0.059991]
[1641717283426,0.405913,41692.0,41691.0,0.0599877]
[1641717287577,0.0607257,41693.0,41691.0,0.0599877]
[1641717287878,0.0007367,41693.0,41691.0,0.0599877]
[1641717288676,0.0607247,41693.0,41691.0,0.0599877]
[1641717288877,0.0007367,41693.0,41691.0,0.0599877]
[1641717289777,0.0557237,41693.0,41691.0,0.0599877]
[1641717290179,0.0557237,41693.0,41690.0,0.669977]
[1641717290779,0.0557237,41693.0,41690.0,0.119977]
[1641717292025,0.0557237,41693.0,41691.0,0.05998695]
[1641717292525,0.00069058,41693.0,41691.0,0.05998695]
[1641717292725,0.00069058,41693.0,41690.0,0.119977]
[1641717292927,0.00069058,41693.0,41691.0,0.05998439]
[1641717293126,0.00069058,41693.0,41690.0,0.119977]
[1641717293626,0.06067758,41693.0,41690.0,0.119977]
[1641717296783,0.059995,41691.0,41689.0,0.06035557]
[1641717297179,0.059995,41691.0,41689.0,0.06071814]
[1641717297480,0.06068546,41691.0,41689.0,0.00036257]
[1641717297880,0.06068546,41691.0,41687.0,0.059996]
[1641717298079,0.059996,41690.0,41687.0,0.059996]
[1641717298280,0.059996,41690.0,41689.0,0.00036258]
[1641717298528,0.41790282,41690.0,41689.0,0.00036258]
[1641717299533,0.41790282,41690.0,41688.0,0.059996]
[1641717299732,0.41790282,41690.0,41688.0,0.119991]
[1641717300633,0.00069046,41691.0,41688.0,0.119991]
[1641717300634,0.00069046,41691.0,41689.0,0.609985]
[1641717300836,0.00069046,41691.0,41689.0,0.669968]
[1641717301033,0.00069046,41691.0,41690.0,0.38546]
[1641717302581,0.70448,41696.0,41690.0,0.39046]
[1641717302779,0.00045292,41694.0,41692.0,0.119966]
[1641717302981,0.00045292,41694.0,41692.0,0.094966]
[1641717303182,0.00045292,41694.0,41692.0,0.15494826]
[1641717303983,0.00045295,41694.0,41692.0,0.15494826]
[1641717304586,0.00045295,41694.0,41692.0,0.15794826]
[1641717305384,0.00045295,41694.0,41692.0,0.25794826]
[1641717305585,0.00045295,41694.0,41693.0,0.38546]
[1641717306030,0.00045295,41694.0,41693.0,0.48546]
[1641717306629,0.00045295,41694.0,41693.0,0.49346]
[1641717307233,0.00044287,41694.0,41693.0,0.49346]
[1641717307531,0.00113368,41694.0,41693.0,0.49346]
[1641717307931,0.00113368,41694.0,41693.0,0.48546]
[1641717308831,0.00113368,41694.0,41693.0,0.50246]
[1641717309980,0.00113368,41694.0,41693.0,0.48546]
[1641717310578,0.00113368,41694.0,41693.0,0.50246]
[1641717311378,0.00157655,41694.0,41693.0,0.50246]
[1641717311780,0.00113391,41694.0,41693.0,0.48546]
[1641717312180,0.00113391,41694.0,41693.0,0.7662627]
[1641717312582,0.00113391,41694.0,41693.0,0.7822627]
[1641717312981,0.69361365,41696.0,41693.0,0.7822627]
[1641717313182,0.004,41699.0,41693.0,0.7822627]
[1641717313183,0.004,41699.0,41695.0,0.38675649]
[1641717313440,0.004,41699.0,41698.0,0.38673983]
[1641717313638,0.00567496,41705.0,41700.0,0.00590535]
[1641717313842,0.000696,41715.0,41705.0,0.00567496]
[1641717314039,0.000696,41715.0,41708.0,0.00126594]
[1641717314238,0.000696,41715.0,41708.0,0.50347594]
[1641717314639,0.000696,41715.0,41708.0,0.70347594]
[1641717316142,0.000696,41715.0,41708.0,1.02983503]
[1641717316143,0.00445184,41709.0,41708.0,1.02983503]
[1641717316340,0.00014784,41715.0,41708.0,0.4745]
[1641717316539,0.00014784,41715.0,41711.0,0.119914]
[1641717316745,0.00014784,41715.0,41711.0,0.059957]
[1641717317197,0.06010484,41715.0,41710.0,0.3221867]
[1641717317599,0.00064903,41714.0,41710.0,0.3221867]
[1641717317803,0.34942219,41714.0,41710.0,0.3221867]
[1641717318101,0.00064903,41714.0,41711.0,0.05996]
[1641717318300,0.06060703,41714.0,41711.0,0.05996]
[1641717318502,0.00064903,41714.0,41709.0,0.059961]
[1641717318701,0.00064903,41714.0,41711.0,0.005]
[1641717319101,1.20302524,41712.0,41711.0,0.005]
[1641717319302,0.97223524,41712.0,41711.0,0.005]
[1641717319503,0.71921,41712.0,41711.0,0.005]
[1641717319803,1.05524749,41712.0,41711.0,0.005]
[1641717320004,1.05524749,41712.0,41703.0,0.54087061]
[1641717320204,1.05524749,41712.0,41708.0,0.059965]
[1641717320506,1.05524749,41712.0,41708.0,0.059964]
[1641717320704,1.05624749,41712.0,41705.0,0.05067496]
[1641717321131,1.05624749,41712.0,41705.0,0.11064226]
[1641717321332,1.05624749,41712.0,41707.0,0.059966]
[1641717321732,0.72021,41712.0,41708.0,0.059964]
[1641717321931,0.71921,41712.0,41708.0,0.179882]
[1641717322131,0.71921,41712.0,41710.0,0.05995881]
[1641717322533,0.71985872,41712.0,41708.0,0.119918]
[1641717322732,0.25274666,41711.0,41710.0,0.04]
[1641717322932,0.97195666,41711.0,41710.0,0.04]
[1641717323332,0.71921,41711.0,41710.0,0.04]
[1641717323932,0.71221,41711.0,41707.0,0.059968]
[1641717324235,0.059967,41710.0,41707.0,0.17989731]
[1641717324432,0.71221,41711.0,41707.0,0.17989731]
[1641717324682,0.71221,41711.0,41707.0,0.203968]
[1641717324885,0.71221,41711.0,41707.0,0.103968]
[1641717325081,0.71221,41711.0,41710.0,0.25792941]
[1641717325684,0.71221,41711.0,41710.0,0.64338941]
[1641717326684,0.71821,41711.0,41710.0,0.65938941]
[1641717327484,0.71821,41711.0,41710.0,0.9476497]
[1641717327685,0.71821,41711.0,41710.0,0.65938941]
[1641717327885,0.71221,41711.0,41710.0,0.64338941]
[1641717328731,0.71821,41711.0,41710.0,0.65538941]
[1641717329732,0.71821,41711.0,41710.0,0.62560973]
[1641717330031,0.71221,41711.0,41710.0,0.61360973]
[1641717330432,0.71221,41711.0,41710.0,0.90067025]
[1641717330631,0.71421,41711.0,41710.0,0.92767025]
[1641717330936,0.71421,41711.0,41710.0,0.64060973]
[1641717331132,0.71421,41711.0,41710.0,1.20072213]
[1641717331332,0.71421,41711.0,41710.0,1.48858551]
[1641717331932,0.71221,41711.0,41710.0,1.46158551]
[1641717332188,0.71221,41711.0,41710.0,1.17372213]
[1641717332391,0.71221,41711.0,41710.0,0.61360973]
[1641717332792,0.71221,41711.0,41710.0,0.64460973]
[1641717332991,0.71221,41711.0,41710.0,1.08226353]
[1641717333793,0.71221,41711.0,41710.0,1.14221253]
[1641717333990,8.72e-06,41712.0,41710.0,1.15901253]
[1641717334190,8.72e-06,41712.0,41711.0,2.07703653]
[1641717334392,0.00044087,41714.0,41711.0,2.40768653]
[1641717334592,0.00044087,41714.0,41713.0,2.04165395]
[1641717334792,0.00044087,41714.0,41713.0,2.08945395]
[1641717334991,0.000284,41727.0,41714.0,1.95746]
[1641717335192,0.000284,41727.0,41718.0,0.70128152]
[1641717335391,0.000284,41727.0,41718.0,0.75128152]
[1641717335590,0.000284,41727.0,41718.0,0.85128152]
[1641717336035,0.003284,41729.0,41728.0,0.23594394]
[1641717336239,0.722214,41729.0,41728.0,0.23594394]
[1641717337638,0.72272002,41729.0,41728.0,0.23594394]
[1641717337840,0.72272002,41729.0,41727.0,0.11986131]
[1641717338044,0.72272002,41729.0,41727.0,0.059931]
[1641717338241,0.72316963,41729.0,41727.0,0.059931]
[1641717338640,0.72316963,41729.0,41727.0,0.074931]
[1641717339143,0.72316963,41729.0,41727.0,0.124931]
[1641717339543,0.72266963,41729.0,41728.0,0.00123656]
[1641717339790,0.72266963,41729.0,41728.0,0.11498656]
[1641717339791,0.72266361,41729.0,41728.0,0.11498656]
[1641717339989,0.72266361,41729.0,41728.0,0.87395315]
[1641717340490,0.72266361,41729.0,41728.0,2.24595315]